lending/lending_fUSD_20250114
["ID","MTS","AMOUNT","RATE_DAILY","PERIOD"]
[348932434,1736877042083,-500.0,9.999e-05,2]
[348932435,1736877042092,-500.0,9.999e-05,2]
[348932436,1736877042102,-500.0,9.999e-05,2]
[348932437,1736877042111,-500.0,9.999e-05,2]
[348932438,1736877042121,-500.0,9.999e-05,2]
[348932439,1736877042132,-500.41754991,9.999e-05,2]
[348932440,1736877042141,-500.0,9.999e-05,2]
[348932441,1736877042152,-500.0,9.999e-05,2]
[348932442,1736877042161,-500.0,9.999e-05,2]
[348932443,1736877042171,-500.0,9.999e-05,2]
[348932444,1736877042181,-500.0,9.999e-05,2]
[348932445,1736877042191,-500.0,9.999e-05,2]
[348932446,1736877042200,-500.0,9.999e-05,2]
[348932447,1736877042209,-500.0,9.999e-05,2]
[348932448,1736877042219,-500.0,9.999e-05,2]
[348932449,1736877042228,-500.0,9.999e-05,2]
[348932450,1736877042237,-500.0,9.999e-05,2]
[348932451,1736877042246,-500.0,9.999e-05,2]
[348932452,1736877042255,-500.0,9.999e-05,2]
[348932453,1736877042265,-253.35853558,9.999e-05,2]
[348932454,1736877042274,-500.0,9.999e-05,2]
[348932455,1736877042283,-500.0,9.999e-05,2]
[348932456,1736877042292,-500.0,9.999e-05,2]
[348932457,1736877042301,-532.59621255,9.999e-05,2]
[348932458,1736877042312,-500.0,9.999e-05,2]
[348932459,1736877042321,-500.0,9.999e-05,2]
[348932460,1736877042330,-500.0,9.999e-05,2]
[348932461,1736877042339,-500.0,9.999e-05,2]
[348932462,1736877042348,-500.0,9.999e-05,2]
[348932463,1736877042357,-500.0,9.999e-05,2]
[348932464,1736877042366,-500.0,9.999e-05,2]
[348932465,1736877042375,-500.0,9.999e-05,2]
[348932466,1736877042384,-500.0,9.999e-05,2]
[348932467,1736877042393,-500.0,9.999e-05,2]
[348932468,1736877042402,-500.0,9.999e-05,2]
[348932469,1736877042411,-300.0,9.999e-05,2]
[348932470,1736877042421,-500.0,9.999e-05,2]
[348932471,1736877042432,-500.0,9.999e-05,2]
[348932472,1736877042443,-500.0,9.999e-05,2]
[348932473,1736877042452,-500.0,9.999e-05,2]
[348932474,1736877042462,-500.0,9.999e-05,2]
[348932475,1736877042471,-500.0,9.999e-05,2]
[348932476,1736877042480,-500.0,9.999e-05,2]
[348932477,1736877042490,-500.0,9.999e-05,2]
[348932478,1736877042499,-500.0,9.999e-05,2]
[348932479,1736877042508,-628.84,9.999e-05,2]
[348932480,1736877042520,-500.0,9.999e-05,2]
[348932481,1736877042529,-505.47771085,9.999e-05,2]
[348932482,1736877042540,-509.16406017,9.999e-05,2]
[348932483,1736877042549,-500.0,9.999e-05,2]
[348932484,1736877042558,-500.0,9.999e-05,2]
[348932485,1736877042567,-500.0,9.999e-05,2]
[348932486,1736877042576,-500.0,9.999e-05,2]
[348932487,1736877042585,-500.67291611,9.999e-05,2]
[348932488,1736877042594,-500.0,9.999e-05,2]
[348932489,1736877042603,-500.0,9.999e-05,2]
[348932490,1736877042613,-555.92815658,9.999e-05,2]
[348932491,1736877042622,-638.01230234,9.999e-05,2]
[348932492,1736877042631,-500.0,9.999e-05,2]
[348932493,1736877042640,-502.67442728,9.999e-05,2]
[348932494,1736877042649,-500.0,9.999e-05,2]
[348932495,1736877042658,-504.50441447,9.999e-05,2]
[348932496,1736877042667,-500.0,9.999e-05,2]
[348932497,1736877042676,-500.0,9.999e-05,2]
[348932498,1736877042685,-500.0,9.999e-05,2]
[348932499,1736877042695,-500.0,9.999e-05,2]
[348932500,1736877042704,-500.0,9.999e-05,2]
[348932501,1736877042713,-500.0,9.999e-05,2]
[348932502,1736877042723,-500.0,9.999e-05,2]
[348932503,1736877042732,-500.0,9.999e-05,2]
[348932504,1736877042741,-500.0,9.999e-05,2]
[348932505,1736877042750,-500.0,9.999e-05,2]
[348932506,1736877042760,-500.0,9.999e-05,2]
[348932507,1736877042769,-500.0,9.999e-05,2]
[348932508,1736877042778,-500.0,9.999e-05,2]
[348932509,1736877042788,-486.17413973,9.999e-05,2]
[348932510,1736877042797,-500.0,9.999e-05,2]
[348932511,1736877042807,-500.0,9.999e-05,2]
[348932512,1736877042816,-747.09,9.999e-05,2]
[348932513,1736877042827,-205.70089354,9.999e-05,2]
[348932514,1736877042837,-500.0,9.999e-05,2]
[348932515,1736877042846,-500.0,9.999e-05,2]
[348932517,1736877042855,-508.37300892,9.999e-05,2]
[348932519,1736877042864,-500.83983256,9.999e-05,2]
[348932521,1736877042875,-500.0,9.999e-05,2]
[348932522,1736877042883,-500.0,9.999e-05,2]
[348932523,1736877042893,-500.0,9.999e-05,2]
[348932524,1736877042902,-500.0,9.999e-05,2]
[348932525,1736877042911,-500.0,9.999e-05,2]
[348932526,1736877042920,-694.39,9.999e-05,2]
[348932527,1736877042931,-500.0,9.999e-05,2]
[348932528,1736877042939,-500.0,9.999e-05,2]
[348932529,1736877042948,-333.16119179,9.999e-05,2]
[348932530,1736877042957,-446.75022027,9.999e-05,2]
[348932532,1736877042987,-500.0,9.989e-05,2]
[348932534,1736877042997,-53.24977973,9.999e-05,2]
[348932535,1736877043006,-500.0,9.999e-05,2]
[348932536,1736877043015,-500.0,9.999e-05,2]
[348932537,1736877043024,-500.0,9.999e-05,2]
[348932538,1736877043034,-505.79024746,9.999e-05,2]
[348932539,1736877043044,-500.0,9.999e-05,2]
[348932540,1736877043053,-503.04145965,9.999e-05,2]
[348932541,1736877043062,-500.0,9.999e-05,2]
[348932542,1736877043071,-500.0,9.999e-05,2]
[348932543,1736877043081,-500.0,9.999e-05,2]
[348932544,1736877043090,-500.0,9.999e-05,2]
[348932545,1736877043099,-125.20054865,9.999e-05,2]
[348932546,1736877043123,-377.04082562,9.999e-05,2]
[348932547,1736877043132,-500.0,9.999e-05,2]
[348932548,1736877043141,-500.0,9.999e-05,2]
[348932549,1736877043151,-500.0,9.999e-05,2]
[348932550,1736877043160,-500.0,9.999e-05,2]
[348932551,1736877043169,-508.25944272,9.999e-05,2]
[348932552,1736877043179,-503.03017837,9.999e-05,2]
[348932553,1736877043188,-500.0,9.999e-05,2]
[348932554,1736877043198,-179.89239873,9.999e-05,2]
[348932555,1736877043223,-320.10760127,9.999e-05,2]
[348932556,1736877043233,-500.0,9.999e-05,2]
[348932557,1736877043242,-493.48579679,9.999e-05,2]
[348932558,1736877043252,-500.0,9.999e-05,2]
[348932559,1736877043261,-500.0,9.999e-05,2]
[348932560,1736877043271,-500.0,9.999e-05,2]
[348932561,1736877043280,-500.66667375,9.999e-05,2]
[348932562,1736877043293,-500.0,9.999e-05,2]
[348932563,1736877043303,-541.17641048,9.999e-05,2]
[348932564,1736877043312,-500.0,9.999e-05,2]
[348932565,1736877043322,-500.0,9.999e-05,2]
[348932566,1736877043331,-500.0,9.999e-05,2]
[348932567,1736877043340,-500.0,9.999e-05,2]
[348932569,1736877043349,-500.0,9.999e-05,2]
[348932571,1736877043358,-500.0,9.999e-05,2]
[348932573,1736877043367,-500.0,9.999e-05,2]
[348932575,1736877043376,-500.0,9.999e-05,2]
[348932577,1736877043385,-500.0,9.999e-05,2]
[348932579,1736877043395,-500.0,9.999e-05,2]
[348932581,1736877043404,-500.0,9.999e-05,2]
[348932582,1736877043413,-500.0,9.999e-05,2]
[348932584,1736877043422,-377.04135063,9.999e-05,2]
[348932586,1736877043432,-500.0,9.999e-05,2]
[348932589,1736877043441,-168.79119879,9.999e-05,2]
[348932590,1736877043450,-500.0,9.999e-05,2]
[348932592,1736877043459,-500.0,9.999e-05,2]
[348932595,1736877043469,-500.0,9.999e-05,2]
[348932599,1736877043478,-147.80191657,9.999e-05,2]
[348932604,1736877043497,-517.79808343,9.999e-05,2]
[348932628,1736877043507,-500.0,9.999e-05,2]
[348932630,1736877043725,-298.41191658,9.999e-05,2]
[348932632,1736877043737,-201.58808342,9.999e-05,2]
[348932634,1736877043747,-174.92928158,9.999e-05,2]
[348932666,1736877044173,-500.0,9.963e-05,2]
[348932667,1736877044182,-325.07071842,9.999e-05,2]
[348932668,1736877044192,-494.56672436,9.999e-05,2]
[348932669,1736877044203,-5.43327564,9.999e-05,2]
[348932670,1736877044212,-500.0,9.999e-05,2]
[348932671,1736877044224,-500.0,9.999e-05,2]
[348932672,1736877044233,-532.68,9.999e-05,2]
[348932673,1736877044243,-500.0,9.999e-05,2]
[348932675,1736877044253,-285.93202856,9.999e-05,2]
[348932677,1736877044265,-1334.93797144,9.999e-05,2]
[348932679,1736877044275,-500.0,9.999e-05,2]
[348932682,1736877044286,-500.0,9.999e-05,2]
[348932684,1736877044296,-500.0,9.999e-05,2]
[348932686,1736877044305,-500.0,9.999e-05,2]
[348932687,1736877044315,-500.0,9.999e-05,2]
[348932689,1736877044324,-500.0,9.999e-05,2]
[348932691,1736877044334,-500.0,9.999e-05,2]
[348932693,1736877044343,-682.1,9.999e-05,2]
[348932695,1736877044352,-3112.02,9.999e-05,2]
[348932697,1736877044362,-500.0,9.999e-05,2]
[348932699,1736877044371,-500.0,9.999e-05,2]
[348932701,1736877044380,-592.87,9.999e-05,2]
[348932703,1736877044389,-500.0,9.999e-05,2]
[348932705,1736877044399,-857.35,9.999e-05,2]
[348932707,1736877044409,-500.0,9.999e-05,2]
[348932709,1736877044418,-500.0,9.999e-05,2]
[348932711,1736877044428,-500.0,9.999e-05,2]
[348932713,1736877044438,-500.0,9.999e-05,2]
[348932715,1736877044447,-500.0,9.999e-05,2]
[348932717,1736877044456,-500.0,9.999e-05,2]
[348932719,1736877044466,-500.0,9.999e-05,2]
[348932721,1736877044475,-1028.38,9.999e-05,2]
[348932723,1736877044484,-1235.66950861,9.999e-05,2]
[348932725,1736877044494,-500.0,0.0001,2]
[348932727,1736877044503,-176.96475185,0.0001,2]
[348932729,1736877044513,-300.0,0.0001,3]
[348932731,1736877044523,-2154.60121759,0.0001,2]
[348932733,1736877044532,-2154.60121746,0.0001,2]
[348932735,1736877044542,-1488.43697616,0.00010087,2]
[348932737,1736877044551,-1000.0,0.00010105,2]
[348932739,1736877044561,-164.72,0.00010137,2]
[348932741,1736877044571,-1488.43697616,0.00010194,2]
[348932743,1736877044580,-2154.60121746,0.00010217,2]
[348932745,1736877044589,-200.71118932,0.00010235,2]
[348932747,1736877044599,-500.0,0.00010235,2]
[348932749,1736877044608,-303.33102734,0.00010235,2]
[348932751,1736877044617,-500.0,0.00010235,2]
[348932753,1736877044627,-693.08,0.00010236,2]
[348932755,1736877044636,-664.2,0.00010236,2]
[348932757,1736877044645,-1375.29,0.00010236,2]
[348932759,1736877044656,-7085.29,0.00010236,2]
[348932761,1736877044665,-974.97,0.00010236,2]
[348932763,1736877044676,-1524.45,0.00010236,2]
[348932765,1736877044686,-991.3,0.00010236,2]
[348932767,1736877044695,-3340.36,0.00010236,2]
[348932769,1736877044705,-1071.57,0.00010236,2]
[348932771,1736877044714,-886.24,0.00010236,2]
[348932772,1736877044724,-1105.32,0.00010236,2]
[348932773,1736877044734,-500.0,0.00010236,2]
[348932774,1736877044743,-579.51,0.00010236,2]
[348932775,1736877044752,-1734.49,0.00010236,2]
[348932776,1736877044762,-663.76,0.00010236,2]
[348932777,1736877044773,-500.0,0.00010236,2]
[348932778,1736877044783,-941.26,0.00010236,2]
[348932779,1736877044792,-500.0,0.00010236,2]
[348932780,1736877044802,-698.6,0.00010236,2]
[348932781,1736877044811,-500.0,0.00010236,2]
[348932782,1736877044821,-583.77,0.00010236,2]
[348932783,1736877044834,-500.0,0.00010237,2]
[348932784,1736877044844,-1566.61,0.00010237,2]
[348932785,1736877044855,-500.0,0.00010237,2]
[348932786,1736877044866,-570.81,0.00010237,2]
[348932787,1736877044875,-689.48,0.00010237,2]
[348932788,1736877044884,-1204.11,0.00010237,2]
[348932789,1736877044894,-500.0,0.00010237,2]
[348932790,1736877044903,-1000.0,0.00010237,2]
[348932791,1736877044913,-654.99,0.00010237,2]
[348932792,1736877044923,-500.0,0.00010237,2]
[348932793,1736877044932,-1118.35,0.00010237,2]
[348932794,1736877044942,-500.0,0.00010237,2]
[348932795,1736877044952,-1582.95,0.00010263,2]
[348932796,1736877044961,-1970.29,0.00010263,2]
[348932797,1736877044971,-1373.99,0.00010263,2]
[348932798,1736877044981,-500.0,0.00010263,2]
[348932799,1736877044991,-807.68,0.00010263,2]
[348932800,1736877045001,-1959.34,0.00010263,2]
[348932801,1736877045010,-500.0,0.00010263,2]
[348932802,1736877045020,-500.0,0.00010263,2]
[348932803,1736877045029,-775.54,0.00010263,2]
[348932804,1736877045040,-546.36,0.00010263,2]
[348932805,1736877045049,-682.99,0.00010263,2]
[348932806,1736877045059,-500.0,0.00010263,2]
[348932807,1736877045069,-500.0,0.00010263,2]
[348932808,1736877045080,-1531.13,0.00010263,2]
[348932809,1736877045090,-500.0,0.00010263,2]
[348932810,1736877045100,-570.38,0.00010267,2]
[348932811,1736877045110,-563.46,0.00010267,2]
[348932812,1736877045120,-500.0,0.00010267,2]
[348932813,1736877045130,-915.37,0.00010267,2]
[348932814,1736877045139,-555.16,0.00010267,2]
[348932815,1736877045149,-1233.43,0.00010267,2]
[348932816,1736877045158,-500.0,0.00010269,2]
[348932817,1736877045168,-500.0,0.00010269,2]
[348932818,1736877045178,-500.0,0.00010269,2]
[348932819,1736877045187,-500.0,0.00010269,2]
[348932820,1736877045197,-500.0,0.00010269,2]
[348932821,1736877045207,-500.0,0.00010269,2]
[348932822,1736877045219,-500.0,0.00010269,2]
[348932823,1736877045229,-500.0,0.00010269,2]
[348932824,1736877045239,-699.86,0.00010269,2]
[348932825,1736877045248,-2995.2,0.00010269,2]
[348932826,1736877045258,-278.02886135,0.00010269,2]
[348932827,1736877045269,-768.85,0.00010269,2]
[348932828,1736877045279,-1597.75,0.00010269,2]
[348932829,1736877045290,-5227.73,0.00010269,2]
[348932830,1736877045300,-500.0,0.00010269,2]
[348932831,1736877045309,-757.26,0.00010269,2]
[348932832,1736877045319,-973.38,0.00010269,2]
[348932833,1736877045329,-500.0,0.00010269,2]
[348932834,1736877045338,-500.0,0.00010269,2]
[348932835,1736877045348,-500.0,0.00010269,2]
[348932836,1736877045357,-500.0,0.00010269,2]
[348932837,1736877045367,-1507.19,0.00010269,2]
[348932838,1736877045377,-500.0,0.00010269,2]
[348932839,1736877045386,-500.0,0.00010269,2]
[348932840,1736877045396,-500.0,0.00010269,2]
[348932841,1736877045405,-500.0,0.00010269,2]
[348932842,1736877045414,-709.73,0.00010269,2]
[348932843,1736877045424,-2049.9,0.00010269,2]
[348932844,1736877045433,-881.61,0.00010269,2]
[348932845,1736877045443,-552.64,0.00010269,2]
[348932846,1736877045452,-500.0,0.00010269,2]
[348932847,1736877045461,-1451.3,0.00010269,2]
[348932848,1736877045471,-500.0,0.00010269,2]
[348932849,1736877045480,-779.39,0.00010269,2]
[348932850,1736877045489,-500.0,0.00010269,2]
[348932851,1736877045499,-500.0,0.00010269,2]
[348932852,1736877045508,-707.63,0.00010269,2]
[348932853,1736877045521,-2284.55,0.00010272,2]
[348932854,1736877045536,-1299.33,0.00010272,2]
[348932855,1736877045549,-974.53,0.00010272,2]
[348932856,1736877045562,-634.093781,0.00010272,2]
[348932857,1736877045574,-500.0,0.00010272,2]
[348932858,1736877045585,-695.648084,0.00010272,2]
[348932859,1736877045597,-500.0,0.00010272,2]
[348932860,1736877045610,-3115.66,0.00010272,2]
[348932861,1736877045622,-556.91,0.00010272,2]
[348932862,1736877045634,-500.0,0.00010272,2]
[348932863,1736877045647,-500.0,0.00010272,2]
[348932864,1736877045660,-500.0,0.00010272,2]
[348932866,1736877045672,-500.0,0.00010272,2]
[348932868,1736877045685,-897.42,0.00010272,2]
[348932870,1736877045696,-500.0,0.00010272,2]
[348932872,1736877045707,-500.0,0.00010272,2]
[348932874,1736877045718,-500.0,0.00010272,2]
[348932875,1736877045730,-540.25,0.00010272,2]
[348932876,1736877045742,-500.0,0.00010272,2]
[348932877,1736877045755,-500.0,0.00010272,2]
[348932878,1736877045769,-631.99252007,0.00010272,2]
[348932879,1736877045781,-500.0,0.00010272,2]
[348932880,1736877045794,-762.67,0.00010272,2]
[348932881,1736877045806,-500.0,0.00010272,2]
[348932882,1736877045819,-500.0,0.00010272,2]
[348932884,1736877045836,-500.0,0.00010272,2]
[348932885,1736877045848,-500.0,0.00010272,2]
[348932886,1736877045862,-500.0,0.00010272,2]
[348932887,1736877045876,-500.0,0.00010272,2]
[348932888,1736877045888,-589.9,0.00010272,2]
[348932889,1736877045901,-2645.26,0.00010272,2]
[348932890,1736877045915,-500.0,0.00010272,2]
[348932891,1736877045927,-500.0,0.00010272,2]
[348932893,1736877045938,-658.85,0.00010272,2]
[348932895,1736877045950,-500.0,0.00010272,2]
[348932896,1736877045963,-500.0,0.00010272,2]
[348932897,1736877045976,-571.22,0.00010272,2]
[348932898,1736877045988,-500.0,0.00010272,2]
[348932899,1736877046001,-500.0,0.00010272,2]
[348932900,1736877046013,-131.97911629,0.00010272,2]
[348932901,1736877046074,-166.72186144,9.998e-05,2]
[348932902,1736877046086,-368.02088371,0.00010272,2]
[348932903,1736877046098,-492.50765485,0.00010272,2]
[348932937,1736877046661,-500.0,9.998e-05,2]
[348932939,1736877046673,-1865.49584166,0.00010071,4]
[348932941,1736877046684,-139.70234515,0.00010272,2]
[348932943,1736877046696,-899.15,0.00010272,2]
[348932945,1736877046707,-500.0,0.00010272,2]
[348932948,1736877046718,-500.0,0.00010272,2]
[348932950,1736877046730,-500.0,0.00010272,2]
[348932952,1736877046740,-500.0,0.00010272,2]
[348932954,1736877046752,-500.0,0.00010272,2]
[348932956,1736877046762,-500.0,0.00010272,2]
[348932958,1736877046774,-500.0,0.00010272,2]
[348932961,1736877046786,-656.8,0.00010272,2]
[348932963,1736877046797,-500.0,0.00010272,2]
[348932965,1736877046808,-500.0,0.00010272,2]
[348932967,1736877046820,-500.0,0.00010272,2]
[348932969,1736877046835,-540.26,0.00010272,2]
[348932971,1736877046846,-714.07,0.00010272,2]
[348932973,1736877046863,-500.0,0.00010272,2]
[348932974,1736877046875,-500.0,0.00010272,2]
[348932975,1736877046886,-500.0,0.00010272,2]
[348932976,1736877046897,-500.0,0.00010272,2]
[348932977,1736877046908,-2399.55,0.00010272,2]
[348932978,1736877046920,-500.0,0.00010272,2]
[348932979,1736877046931,-500.87,0.00010272,2]
[348932980,1736877046942,-500.0,0.00010272,2]
[348932981,1736877046953,-500.0,0.00010272,2]
[348932982,1736877046964,-500.0,0.00010272,2]
[348932983,1736877046975,-500.0,0.00010272,2]
[348932984,1736877046987,-500.0,0.00010272,2]
[348932985,1736877046998,-500.0,0.00010272,2]
[348932986,1736877047009,-708.42,0.00010272,2]
[348932987,1736877047020,-500.0,0.00010272,2]
[348932988,1736877047031,-500.0,0.00010272,2]
[348932989,1736877047043,-500.0,0.00010272,2]
[348932990,1736877047053,-500.0,0.00010272,2]
[348932991,1736877047064,-582.99,0.00010272,2]
[348932992,1736877047075,-897.45,0.00010272,2]
[348932993,1736877047087,-3105.43,0.00010272,2]
[348932994,1736877047098,-570.14,0.00010272,2]
[348932995,1736877047108,-1052.32,0.00010272,2]
[348932996,1736877047120,-500.0,0.00010272,2]
[348932997,1736877047131,-2562.11,0.00010272,2]
[348932998,1736877047143,-593.58,0.00010272,2]
[348932999,1736877047154,-500.0,0.00010272,2]
[348933000,1736877047165,-500.0,0.00010272,2]
[348933001,1736877047177,-500.0,0.00010272,2]
[348933002,1736877047188,-500.0,0.00010272,2]
[348933003,1736877047199,-2129.53,0.00010272,2]
[348933004,1736877047211,-863.97,0.00010272,2]
[348933005,1736877047224,-603.2,0.00010272,2]
[348933006,1736877047235,-500.0,0.00010272,2]
[348933007,1736877047247,-500.0,0.00010272,2]
[348933008,1736877047258,-500.0,0.00010272,2]
[348933009,1736877047269,-500.0,0.00010272,2]
[348933010,1736877047280,-500.0,0.00010272,2]
[348933011,1736877047292,-572.44,0.00010272,2]
[348933012,1736877047308,-2716.91,0.00010272,2]
[348933013,1736877047320,-500.0,0.00010272,2]
[348933014,1736877047330,-500.0,0.00010272,2]
[348933015,1736877047341,-500.0,0.00010272,2]
[348933016,1736877047353,-500.0,0.00010272,2]
[348933017,1736877047364,-500.0,0.00010272,2]
[348933018,1736877047375,-1215.3,0.00010272,2]
[348933019,1736877047386,-738.44,0.00010272,2]
[348933020,1736877047397,-500.0,0.00010272,2]
[348933021,1736877047408,-500.0,0.00010272,2]
[348933022,1736877047419,-500.0,0.00010272,2]
[348933023,1736877047431,-500.0,0.00010272,2]
[348933024,1736877047442,-2967.18,0.00010272,2]
[348933025,1736877047454,-500.0,0.00010272,2]
[348933026,1736877047466,-584.37,0.00010272,2]
[348933027,1736877047478,-500.0,0.00010272,2]
[348933028,1736877047490,-500.0,0.00010272,2]
[348933029,1736877047501,-500.0,0.00010272,2]
[348933030,1736877047512,-3197.43,0.00010272,2]
[348933031,1736877047524,-500.0,0.00010273,2]
[348933032,1736877047534,-500.0,0.00010273,2]
[348933033,1736877047544,-500.0,0.00010273,2]
[348933034,1736877047553,-500.0,0.00010273,2]
[348933035,1736877047563,-500.0,0.00010273,2]
[348933036,1736877047573,-500.0,0.00010273,2]
[348933037,1736877047583,-500.0,0.00010273,2]
[348933038,1736877047592,-500.0,0.00010273,2]
[348933039,1736877047601,-500.0,0.00010273,2]
[348933040,1736877047611,-500.0,0.00010273,2]
[348933041,1736877047620,-500.0,0.00010273,2]
[348933042,1736877047629,-500.0,0.00010273,2]
[348933043,1736877047639,-500.0,0.00010273,2]
[348933044,1736877047648,-500.0,0.00010273,2]
[348933045,1736877047657,-500.0,0.00010273,2]
[348933046,1736877047666,-500.0,0.00010273,2]
[348933047,1736877047677,-500.0,0.00010273,2]
[348933048,1736877047686,-500.0,0.00010273,2]
[348933049,1736877047696,-583.09,0.00010273,2]
[348933050,1736877047705,-500.0,0.00010273,2]
[348933051,1736877047715,-500.0,0.00010273,2]
[348933052,1736877047725,-500.0,0.00010273,2]
[348933053,1736877047734,-500.0,0.00010273,2]
[348933054,1736877047743,-500.0,0.00010273,2]
[348933055,1736877048087,-500.0,0.00010273,2]
[348933056,1736877048105,-500.0,0.00010273,2]
[348933057,1736877048116,-500.0,0.00010273,2]
[348933058,1736877048125,-500.0,0.00010273,2]
[348933059,1736877048136,-500.0,0.00010273,2]
[348933060,1736877048145,-500.0,0.00010273,2]
[348933061,1736877048154,-500.0,0.00010273,2]
[348933062,1736877048165,-500.0,0.00010273,2]
[348933063,1736877048174,-500.0,0.00010273,2]
[348933064,1736877048183,-500.0,0.00010273,2]
[348933065,1736877048193,-500.0,0.00010273,2]
[348933066,1736877048202,-500.0,0.00010273,2]
[348933067,1736877048212,-500.0,0.00010273,2]
[348933068,1736877048223,-500.0,0.00010273,2]
[348933069,1736877048233,-500.0,0.00010273,2]
[348933070,1736877048242,-500.0,0.00010273,2]
[348933071,1736877048252,-500.0,0.00010273,2]
[348933072,1736877048261,-500.0,0.00010273,2]
[348933073,1736877048270,-500.0,0.00010273,2]
[348933074,1736877048279,-500.0,0.00010273,2]
[348933075,1736877048289,-500.0,0.00010273,2]
[348933076,1736877048299,-500.0,0.00010273,2]
[348933077,1736877048308,-500.0,0.00010273,2]
[348933078,1736877048318,-500.0,0.00010273,2]
[348933079,1736877048327,-628.84,0.00010273,2]
[348933080,1736877048336,-500.0,0.00010273,2]
[348933081,1736877048346,-500.0,0.00010273,2]
[348933082,1736877048355,-500.0,0.00010273,2]
[348933083,1736877048364,-500.0,0.00010273,2]
[348933084,1736877048373,-500.0,0.00010273,2]
[348933085,1736877048382,-500.0,0.00010273,2]
[348933086,1736877048391,-500.0,0.00010273,2]
[348933087,1736877048401,-500.0,0.00010273,2]
[348933088,1736877048410,-500.0,0.00010273,2]
[348933089,1736877048419,-747.09,0.00010273,2]
[348933090,1736877048428,-500.0,0.00010273,2]
[348933091,1736877048437,-500.0,0.00010273,2]
[348933092,1736877048447,-500.0,0.00010273,2]
[348933093,1736877048455,-500.0,0.00010273,2]
[348933094,1736877048465,-500.0,0.00010273,2]
[348933095,1736877048474,-694.39,0.00010273,2]
[348933096,1736877048484,-500.0,0.00010273,2]
[348933097,1736877048494,-500.0,0.00010273,2]
[348933098,1736877048504,-500.0,0.00010273,2]
[348933099,1736877048513,-500.0,0.00010273,2]
[348933100,1736877048522,-500.0,0.00010273,2]
[348933101,1736877048531,-500.0,0.00010273,2]
[348933102,1736877048541,-500.0,0.00010273,2]
[348933103,1736877048550,-500.0,0.00010273,2]
[348933104,1736877048559,-500.0,0.00010273,2]
[348933105,1736877048568,-500.0,0.00010273,2]
[348933106,1736877048577,-500.0,0.00010273,2]
[348933107,1736877048586,-500.0,0.00010273,2]
[348933108,1736877048596,-500.0,0.00010273,2]
[348933109,1736877048605,-500.0,0.00010273,2]
[348933110,1736877048615,-500.0,0.00010273,2]
[348933111,1736877048624,-500.0,0.00010273,2]
[348933112,1736877048633,-500.0,0.00010273,2]
[348933113,1736877048643,-500.0,0.00010273,2]
[348933114,1736877048652,-500.0,0.00010273,2]
[348933115,1736877048661,-500.0,0.00010273,2]
[348933116,1736877048671,-500.0,0.00010273,2]
[348933117,1736877048680,-500.0,0.00010273,2]
[348933118,1736877048689,-500.0,0.00010273,2]
[348933119,1736877048698,-500.0,0.00010273,2]
[348933120,1736877048707,-500.0,0.00010273,2]
[348933121,1736877048717,-500.0,0.00010273,2]
[348933122,1736877048726,-665.6,0.00010273,2]
[348933123,1736877048736,-500.0,0.00010273,2]
[348933124,1736877048745,-500.0,0.00010273,2]
[348933125,1736877048754,-500.0,0.00010273,2]